bitfinex/quotes_SOLUSD_20250525
["timestamp","ask_amount","ask_price","bid_price","bid_amount"]
[1748136909975,19.8124682,171.52,171.44,34.88]
[1748136910178,19.8124682,171.51,171.44,34.88]
[1748136910376,19.8124682,171.51,171.45,34.9]
[1748136910875,19.8124682,171.51,171.46,34.9]
[1748136911076,19.8124682,171.51,171.42,1.5396]
[1748136911384,19.8124682,171.5,171.43,34.9]
[1748136912070,26.0,171.52,171.44,34.9]
[1748136912071,19.8124682,171.48,171.44,34.9]
[1748136912384,19.8124682,171.47,171.45,34.9]
[1748136913181,19.8124682,171.46,171.38,1.574]
[1748136913366,19.8124682,171.45,171.35,6.2083]
[1748136913565,45.8124682,171.47,171.39,34.9]
[1748136914069,1.6446,171.48,171.39,34.9]
[1748136914385,21.3864682,171.53,171.42,18.64964886]
[1748136914687,1.574,171.53,171.43,6.4409]
[1748136914882,19.8124682,171.51,171.43,6.4409]
[1748136915181,19.8124682,171.52,171.43,6.4409]
[1748136915383,21.3864682,171.53,171.43,6.4409]
[1748136915558,6.3338,171.55,171.44,18.64964886]
[1748136915759,1.574,171.57,171.49,26.0]
[1748136916172,21.3864682,171.57,171.49,26.0]
[1748136916875,1.574,171.57,171.49,26.0]
[1748136917272,21.3864682,171.57,171.49,26.0]
[1748136917588,21.3864682,171.57,171.5,259.02]
[1748136917758,21.3864682,171.57,171.51,34.9]
[1748136918169,1.574,171.57,171.51,34.9]
[1748136920283,21.3864682,171.57,171.51,34.9]
[1748136920496,19.8124682,171.55,171.44,18.64964886]
[1748136920670,19.8124682,171.54,171.45,34.9]
[1748136920863,26.0,171.56,171.46,18.64964886]
[1748136921060,1.574,171.57,171.46,18.64964886]
[1748136921790,19.8124682,171.54,171.41,1.6289]
[1748136921968,19.8124682,171.52,171.44,34.9]
[1748136922380,19.8124682,171.53,171.44,34.9]
[1748136924187,19.8124682,171.54,171.44,34.9]
[1748136924376,19.8124682,171.54,171.45,18.64964886]
[1748136925283,26.0,171.56,171.44,34.9]
[1748136925790,19.8124682,171.54,171.44,34.9]
[1748136926167,26.0,171.56,171.44,34.9]
[1748136926367,19.8124682,171.54,171.44,34.9]
[1748136927489,19.8124682,171.54,171.45,259.0]
[1748136927690,26.0,171.56,171.46,18.64964886]
[1748136927874,1.574,171.57,171.46,44.64964886]
[1748136928284,1.574,171.57,171.49,26.0]
[1748136928685,26.1462682,171.59,171.49,26.0]
[1748136929005,26.1462682,171.59,171.49,18.64964886]
[1748136931394,19.8124682,171.57,171.48,1.5632]
[1748136931582,19.8124682,171.57,171.5,34.9]
[1748136931971,19.8124682,171.58,171.5,34.9]
[1748136933089,26.1462682,171.59,171.5,34.9]
[1748136934598,19.8124682,171.58,171.5,34.9]
[1748136935701,6.3338,171.59,171.5,34.9]
[1748136935883,19.8124682,171.58,171.5,34.9]
[1748136936197,6.3338,171.59,171.5,34.9]
[1748136936500,26.1462682,171.59,171.5,34.9]
[1748136937100,19.8124682,171.6,171.51,18.64964886]
[1748136937591,1.629,171.61,171.51,18.64964886]
[1748136937592,21.4414682,171.61,171.52,258.94]
[1748136937803,15.04798984,171.61,171.52,258.94]
[1748136938294,13.41898984,171.6,171.52,258.94]
[1748136939198,13.41898984,171.6,171.51,18.64964886]
[1748136940820,6.6391,171.64,171.53,18.64964886]
[1748136940995,1.6303,171.65,171.53,18.64964886]
[1748136941502,13.41898984,171.64,171.53,18.64964886]
[1748136941805,13.41898984,171.63,171.53,18.64964886]
[1748136941997,13.41898984,171.64,171.56,26.0]
[1748136942305,13.41898984,171.64,171.57,34.9]
[1748136942695,13.41898984,171.63,171.56,26.0]
[1748136942897,13.41898984,171.63,171.58,34.9]
[1748136945393,13.41898984,171.63,171.53,44.64964886]
[1748136945394,13.41898984,171.63,171.59,34.9]
[1748136945596,13.41898984,171.63,171.6,34.9]
[1748136946207,1.6303,171.65,171.6,34.9]
[1748136946385,1.6303,171.65,171.61,34.9]
[1748136946386,13.41898984,171.62,171.61,34.9]
[1748136947187,13.41898984,171.63,171.61,34.9]
[1748136947716,27.6303,171.65,171.62,258.8]
[1748136949105,13.41898984,171.63,171.62,258.8]
[1748136950396,27.6303,171.65,171.62,258.8]
[1748136950717,13.41898984,171.63,171.54,18.64964886]
[1748136950909,13.41898984,171.63,171.55,34.9]
[1748136952913,41.04928984,171.65,171.55,34.9]
[1748136953295,13.41898984,171.64,171.55,34.9]
[1748136953916,41.04928984,171.65,171.55,34.9]
[1748136954118,13.41898984,171.64,171.55,34.9]
[1748136955118,41.04928984,171.65,171.56,18.64964886]
[1748136955322,13.41898984,171.64,171.56,18.64964886]
[1748136955801,27.6303,171.65,171.56,18.64964886]
[1748136956007,13.41898984,171.64,171.53,26.0]
[1748136956207,13.41898984,171.63,171.57,34.88]
[1748136957599,13.41898984,171.63,171.58,258.78]
[1748136958325,13.41898984,171.64,171.58,258.78]
[1748136958715,13.41898984,171.64,171.58,41.08]
[1748136958916,41.04928984,171.65,171.57,34.88]
[1748136959422,41.04928984,171.65,171.54,18.64964886]
[1748136959423,13.41898984,171.63,171.58,34.88]
[1748136959624,0.14216157,171.64,171.59,34.88]
[1748136959800,0.14216157,171.64,171.6,34.88]
[1748136960125,13.41898984,171.61,171.52,8.0145]
[1748136960423,13.41898984,171.6,171.53,34.88]
[1748136960625,13.41898984,171.61,171.53,34.88]
[1748136962522,13.41898984,171.6,171.52,8.0145]
[1748136962728,13.41898984,171.6,171.53,34.88]
[1748136963222,13.41898984,171.59,171.52,1.6466]
[1748136963412,13.41898984,171.59,171.53,34.88]
[1748136963614,13.41898984,171.62,171.53,34.88]
[1748136964022,39.41898984,171.64,171.54,18.64964886]
[1748136965229,13.41898984,171.64,171.54,18.64964886]
[1748136965725,15.04928984,171.65,171.54,18.64964886]
[1748136965908,1.6303,171.65,171.54,18.64964886]
[1748136966114,15.04928984,171.65,171.54,18.64964886]
[1748136966313,13.41898984,171.64,171.54,18.64964886]
[1748136966621,13.41898984,171.62,171.52,84.1466]
[1748136966830,13.41898984,171.61,171.55,34.88]
[1748136967007,13.41898984,171.61,171.56,34.88]
[1748136967407,13.41898984,171.62,171.57,34.88]
[1748136967617,13.41898984,171.62,171.58,41.08]
[1748136968938,13.41898984,171.63,171.58,41.08]
[1748136969139,149.11898984,171.64,171.58,41.08]
[1748136969327,135.7,171.64,171.57,34.88]
[1748136969912,135.7,171.64,171.58,18.64964886]
[1748136971044,135.7,171.64,171.59,34.88]
[1748136971234,13.41898984,171.65,171.59,34.88]
[1748136972335,13.41898984,171.66,171.59,34.88]
[1748136972537,13.41898984,171.67,171.59,34.88]
[1748136973141,26.0,171.68,171.59,34.88]
[1748136973342,13.41898984,171.65,171.59,34.88]
[1748136973920,13.41898984,171.64,171.59,34.88]
[1748136974245,13.41898984,171.64,171.55,6.133]
[1748136974442,13.41898984,171.62,171.56,34.88]
[1748136974739,26.0,171.63,171.57,34.88]
[1748136975135,26.0,171.63,171.58,34.88]
[1748136975735,26.0,171.64,171.58,34.88]
[1748136975927,39.41898984,171.64,171.58,34.88]
[1748136976243,13.41898984,171.63,171.53,18.64964886]
[1748136976418,13.41898984,171.63,171.54,34.88]
[1748136976915,13.41898984,171.61,171.55,34.88]
[1748136977328,13.41898984,171.62,171.55,34.88]
[1748136977525,13.41898984,171.62,171.56,258.64]
[1748136977711,13.41898984,171.63,171.56,258.64]
[1748136977919,13.41898984,171.65,171.56,40.96]
[1748136978233,13.41898984,171.64,171.55,34.88]
[1748136979551,13.41898984,171.64,171.56,18.64964886]
[1748136980244,13.41898984,171.64,171.55,34.88]
[1748136980434,13.41898984,171.63,171.55,34.88]
[1748136980637,13.41898984,171.64,171.55,34.88]
[1748136981338,13.41898984,171.63,171.55,34.88]
[1748136981728,13.41898984,171.63,171.53,18.64964886]
[1748136981929,13.41898984,171.63,171.54,34.88]
[1748136982450,26.0,171.64,171.54,34.88]
[1748136982749,4.04315982,171.65,171.55,44.64964886]
[1748136983922,4.04315982,171.65,171.55,127.14964886]
[1748136984921,13.41898984,171.66,171.55,127.14964886]
[1748136986972,13.41898984,171.66,171.56,8.00426157]
[1748136987256,4.04315982,171.69,171.59,1.6223]
[1748136987628,4.04315982,171.69,171.61,18.64964886]
[1748136988051,4.04315982,171.75,171.66,26.0]
[1748136988351,17.46214966,171.75,171.67,34.88]
[1748136988547,13.41898984,171.71,171.57,7.21297324]
[1748136988744,13.41898984,171.69,171.61,26.0]
[1748136989058,13.41898984,171.68,171.61,26.0]
[1748136989351,14.95248984,171.7,171.61,26.0]
[1748136989554,1.5335,171.7,171.61,26.0]
[1748136990450,13.41898984,171.69,171.61,26.0]
[1748136992153,14.95248984,171.7,171.61,26.0]
[1748136992451,13.41898984,171.71,171.61,26.0]
[1748136992759,149.11898984,171.72,171.62,18.64964886]
[1748136993256,135.7,171.72,171.62,18.64964886]
[1748136993766,135.7,171.72,171.62,0.14216157]
[1748136993928,17.46214966,171.77,171.64,0.14216157]
[1748136994137,26.0,171.76,171.66,20.31604886]
[1748136994333,26.0,171.76,171.68,18.64964886]
[1748136994547,17.46214966,171.77,171.68,18.64964886]
[1748136995641,13.41898984,171.76,171.68,18.64964886]
[1748136995845,13.41898984,171.76,171.67,34.88]
[1748136996859,13.37340587,171.76,171.67,34.88]
[1748136997064,27.5222,171.78,171.67,34.88]
[1748136997362,13.41898984,171.76,171.68,18.64964886]
[1748136997539,13.41898984,171.76,171.69,258.54]
[1748136998159,13.41898984,171.77,171.69,258.54]
[1748136998545,13.41898984,171.77,171.68,18.64964886]
[1748136999248,1.5222,171.78,171.68,18.64964886]
[1748136999446,14.94118984,171.78,171.68,18.64964886]
[1748136999649,13.41898984,171.77,171.68,18.64964886]
[1748137000350,1.5222,171.78,171.68,18.64964886]
[1748137000559,135.7,171.8,171.68,18.64964886]
[1748137001262,13.41898984,171.81,171.68,18.64964886]
[1748137001566,1.6493,171.82,171.68,18.64964886]
[1748137001735,1.6493,171.82,171.7,18.64964886]
[1748137001930,1.6493,171.82,171.72,18.64964886]
[1748137002131,8.2391,171.87,171.77,18.64964886]
[1748137002380,1.6493,171.87,171.77,25.12124886]
[1748137002734,15.06828984,171.87,171.77,25.12124886]
[1748137002949,13.41898984,171.82,171.78,34.86]
[1748137003530,26.0,171.85,171.78,34.86]
[1748137003734,13.41898984,171.83,171.78,34.86]
[1748137005161,13.41898984,171.82,171.78,34.86]
[1748137005354,39.41898984,171.83,171.78,34.86]
[1748137006449,1.6493,171.87,171.78,34.86]
[1748137007267,15.06828984,171.87,171.78,34.86]
[1748137007446,15.06828984,171.87,171.79,258.32]
[1748137007850,15.06828984,171.87,171.79,40.82]
[1748137008060,1.6493,171.87,171.79,40.82]
[1748137008271,15.06828984,171.87,171.79,40.82]
[1748137008573,15.06828984,171.87,171.78,60.86]
[1748137010143,1.6493,171.87,171.78,60.86]
[1748137010345,1.6493,171.87,171.79,18.64964886]
[1748137010551,15.06828984,171.87,171.78,60.86]
[1748137010750,13.41898984,171.86,171.78,60.86]
[1748137011174,1.6493,171.87,171.79,18.64964886]
[1748137012142,39.41898984,171.9,171.79,18.64964886]
[1748137012342,26.0,171.9,171.79,18.64964886]
[1748137012566,13.41898984,171.89,171.79,18.64964886]
[1748137017478,13.41898984,171.89,171.81,18.64964886]
[1748137018253,13.41898984,171.88,171.8,258.2]
[1748137018769,13.41898984,171.88,171.81,34.84]
[1748137020682,39.41898984,171.9,171.81,34.84]
[1748137020980,13.41898984,171.89,171.81,34.84]
[1748137021281,13.41898984,171.88,171.81,34.84]
[1748137022257,15.06828984,171.91,171.82,18.64964886]
[1748137022763,13.41898984,171.9,171.82,18.64964886]
[1748137025085,1.6493,171.91,171.82,18.64964886]
[1748137025380,13.41898984,171.9,171.82,18.64964886]
[1748137027587,13.41898984,171.9,171.83,258.16]
[1748137029980,1.6493,171.91,171.81,34.84]
[1748137029981,13.41898984,171.88,171.84,75.62]
[1748137030160,13.41898984,171.88,171.78,84.0424]
[1748137030498,13.41898984,171.88,171.79,53.48964886]
[1748137031760,13.41898984,171.88,171.79,18.60406488]
[1748137032265,13.41898984,171.89,171.79,18.60406488]
[1748137032563,135.7,171.92,171.8,6.6623]
[1748137032781,14.97708984,171.95,171.8,97.79618788]
[1748137032982,14.97708984,171.95,171.81,36.3849]
[1748137033279,1.5581,171.95,171.82,8.63388788]
[1748137033860,1.5581,171.95,171.83,18.64964886]
[1748137034271,14.97708984,171.95,171.83,18.64964886]
[1748137035174,26.0,171.94,171.83,18.64964886]
[1748137035371,14.97708984,171.95,171.83,44.64964886]
[1748137036984,26.0,171.96,171.83,44.64964886]
[1748137037181,26.0,171.95,171.83,44.64964886]
[1748137037691,1.6248,171.99,171.89,18.64964886]
[1748137037870,1.6248,171.99,171.91,18.64964886]
[1748137038179,13.41898984,172.01,171.91,18.64964886]
[1748137039275,13.41898984,172.01,171.89,18.64964886]
[1748137039479,13.41898984,172.01,171.93,18.64964886]
[1748137040786,13.41898984,171.98,171.94,34.82]
[1748137040989,13.41898984,171.98,171.95,34.82]
[1748137041201,13.41898984,171.97,171.95,34.82]
[1748137042090,13.41898984,171.97,171.96,34.82]
[1748137046306,13.41898984,171.97,171.88,18.64964886]
[1748137046497,13.41898984,171.95,171.89,34.82]
[1748137046811,13.41898984,171.96,171.89,34.82]
[1748137046989,13.41898984,171.97,171.89,34.82]
[1748137047512,13.41898984,171.97,171.9,257.94]
[1748137049601,13.41898984,171.97,171.9,40.68]
[1748137049801,13.41898984,171.97,171.89,34.82]
[1748137050116,26.0,171.99,171.89,34.82]
[1748137050323,13.41898984,171.97,171.89,34.82]
[1748137050923,8.0152,172.03,171.9,44.64964886]
[1748137051219,13.41898984,172.01,171.9,44.64964886]
[1748137051521,13.41898984,172.0,171.9,44.64964886]
[1748137052207,13.41898984,171.98,171.9,44.64964886]
[1748137056415,13.41898984,171.99,171.9,44.64964886]
[1748137057117,34.0152,172.03,171.9,44.64964886]
[1748137057118,13.41898984,171.98,171.9,44.64964886]
[1748137057500,13.41898984,171.98,171.91,257.9]
[1748137059515,13.41898984,172.0,171.9,44.64964886]
[1748137063012,13.41898984,172.01,171.93,26.0]
[1748137065002,139.74315982,172.07,171.94,26.64324886]
[1748137065003,13.41898984,172.04,171.94,26.64324886]
[1748137065306,5.58125982,172.07,171.96,18.64964886]
[1748137065526,19.00024966,172.07,171.96,18.64964886]
[1748137065722,5.58125982,172.07,171.96,18.64964886]
[1748137066461,1.5381,172.07,171.96,18.64964886]
[1748137067022,1.5381,172.07,171.96,23.20596435]
[1748137067222,1.5381,172.07,171.97,0.14216157]
[1748137067648,1.5381,172.07,171.99,18.64964886]
[1748137067928,51.12654966,172.12,172.0,26.14216157]
[1748137068229,33.6644,172.12,172.02,18.64964886]
[1748137068710,47.08338984,172.12,172.02,18.64964886]
[1748137069029,7.6644,172.12,172.02,18.64964886]
[1748137069227,13.41898984,172.11,172.02,18.64964886]
[1748137070122,7.6644,172.12,172.03,26.0]
[1748137070320,14.95708984,172.12,172.05,26.0]
[1748137071129,13.41898984,172.11,172.05,26.0]
[1748137071318,32.3159,172.16,172.06,18.64964886]
[1748137071520,13.41898984,172.15,172.07,34.8]
[1748137072026,33.9659,172.16,172.07,34.8]
[1748137072027,13.41898984,172.14,172.07,34.8]
[1748137073331,13.41898984,172.13,172.07,34.8]
[1748137073721,33.9659,172.16,172.07,34.8]
[1748137073912,13.41898984,172.13,172.07,34.8]
[1748137075426,13.41898984,172.11,172.07,34.8]
[1748137076530,13.41898984,172.12,172.07,34.8]
[1748137077539,13.41898984,172.12,172.08,257.62]
[1748137077737,1.5276,172.2,172.09,18.64964886]
[1748137077941,13.41898984,172.18,172.09,18.64964886]
[1748137078440,1.5276,172.2,172.09,18.64964886]
[1748137078629,14.94658984,172.2,172.09,24.66784886]
[1748137078942,14.94658984,172.2,172.12,26.0]
[1748137079131,14.94658984,172.2,172.13,34.8]
[1748137079815,13.41898984,172.17,172.09,24.66784886]
[1748137080015,13.41898984,172.16,172.1,34.8]
[1748137080414,27.5276,172.2,172.1,34.8]
[1748137080626,13.41898984,172.17,172.1,34.8]
[1748137080829,13.41898984,172.12,172.05,18.64964886]
[1748137081140,13.41898984,172.11,172.06,34.78]
[1748137081712,13.41898984,172.1,172.03,20.24674886]
[1748137081926,13.41898984,172.1,172.04,34.78]
[1748137082531,13.41898984,172.11,172.04,34.78]
[1748137084240,13.41898984,172.1,172.04,34.78]
[1748137084429,13.41898984,172.09,172.05,34.78]
[1748137084630,13.41898984,172.1,172.05,34.78]
[1748137087559,13.41898984,172.1,172.06,257.58]
[1748137088154,13.41898984,172.1,171.99,6.0182]
[1748137088155,13.41898984,172.07,171.96,4.55631549]
[1748137088343,13.41898984,172.04,171.97,292.36]
[1748137088544,13.41898984,172.05,171.97,75.3]
[1748137088860,13.41898984,172.06,171.97,34.78]
[1748137089558,13.41898984,172.05,171.97,34.78]
[1748137091658,13.41898984,172.06,171.98,18.64964886]
[1748137092457,26.0,172.09,171.98,18.64964886]
[1748137092664,13.41898984,172.05,171.97,34.92216157]
[1748137092838,13.41898984,172.04,171.97,34.92216157]
[1748137095034,26.0,172.09,171.98,18.79181043]
[1748137095235,13.41898984,172.06,171.98,18.79181043]
[1748137095746,13.41898984,172.07,171.98,18.79181043]
[1748137096366,26.0,172.09,171.98,18.79181043]
[1748137096549,13.41898984,172.08,171.98,18.79181043]
[1748137097562,13.41898984,172.08,171.99,257.52]
[1748137098166,26.0,172.09,171.99,257.52]
[1748137098349,13.41898984,172.08,171.99,257.52]
[1748137099263,13.41898984,172.09,171.97,117.28]
[1748137099470,6.6326,172.13,172.01,1.6323]
[1748137099765,1.5125,172.15,172.02,25.11284886]
[1748137099766,13.41898984,172.14,172.02,25.11284886]
[1748137100069,17.46214966,172.16,172.04,18.64964886]
[1748137100271,4.04315982,172.16,172.04,19.23059058]
[1748137100471,4.04315982,172.16,172.06,26.74514886]
[1748137101254,4.04315982,172.16,172.1,44.64964886]
[1748137101460,13.41898984,172.2,172.12,18.64964886]
[1748137102156,13.41898984,172.21,172.12,18.64964886]
[1748137103759,13.41898984,172.2,172.12,18.64964886]
[1748137104152,32.4386,172.22,172.06,8.0955]
[1748137104153,13.41898984,172.19,172.06,10.94231165]
[1748137104469,13.41898984,172.17,172.07,18.64964886]
[1748137104675,13.41898984,172.16,172.07,79.42964886]
[1748137104981,39.41898984,172.19,172.07,53.42964886]
[1748137105147,13.41898984,172.18,172.08,26.0]
[1748137107349,13.41898984,172.18,172.09,0.14216157]
[1748137107550,13.41898984,172.18,172.1,257.4]
[1748137107961,26.0,172.2,172.1,257.4]
[1748137107962,13.41898984,172.17,172.1,257.4]
[1748137108481,13.41898984,172.17,172.09,0.14216157]
[1748137108776,13.41898984,172.18,172.09,0.14216157]
[1748137110152,13.41898984,172.17,172.09,0.14216157]
[1748137110352,26.0,172.2,172.09,0.14216157]
[1748137110565,13.41898984,172.18,172.09,0.14216157]
[1748137113465,26.0,172.2,172.09,18.79181043]
[1748137113466,39.41898984,172.2,172.09,18.79181043]
[1748137113986,13.41898984,172.18,172.09,18.79181043]
[1748137117691,13.41898984,172.18,172.1,257.36]
[1748137118086,13.41898984,172.17,172.1,216.98]
[1748137118292,13.41898984,172.16,172.11,75.16]
[1748137118496,13.41898984,172.16,172.06,8.0955]
[1748137118674,13.41898984,172.12,172.03,18.64964886]
[1748137118881,13.41898984,172.09,172.04,34.78]
[1748137119393,13.41898984,172.09,172.01,26.0]
[1748137119394,13.41898984,172.09,172.05,34.78]
[1748137121198,32.1864,172.13,172.05,34.78]
[1748137121199,13.41898984,172.08,172.05,34.78]
[1748137121514,13.41898984,172.08,172.06,34.78]
[1748137121871,6.1864,172.13,172.06,34.78]
[1748137122072,13.41898984,172.09,172.06,34.78]
[1748137124197,6.1864,172.13,172.06,34.78]
[1748137124505,26.0,172.1,172.06,34.78]
[1748137124989,39.41898984,172.1,172.06,34.78]
[1748137126405,13.41898984,172.12,172.06,34.78]
[1748137127116,6.1864,172.13,172.06,34.78]
[1748137127292,1.6016,172.16,172.07,18.64964886]
[1748137127607,13.41898984,172.14,172.08,257.3]
[1748137128111,13.41898984,172.12,172.09,75.04]
[1748137128298,13.41898984,172.12,172.03,18.64964886]
[1748137128697,13.41898984,172.12,172.04,34.78]
[1748137130711,13.41898984,172.13,172.04,60.78]
[1748137131492,13.41898984,172.15,172.05,18.64964886]
[1748137131688,8.087,172.21,172.09,18.64964886]
[1748137132003,13.41898984,172.16,172.08,1.6664]
[1748137132208,13.41898984,172.15,172.09,34.78]
[1748137132707,13.41898984,172.17,172.09,34.78]
[1748137133430,26.0,172.2,172.1,18.64964886]
[1748137133591,26.0,172.2,172.1,44.64964886]
[1748137133592,13.41898984,172.2,172.1,44.64964886]
[1748137134117,13.41898984,172.19,172.1,44.64964886]
[1748137135117,13.41898984,172.19,172.11,0.14216157]
[1748137135921,13.41898984,172.16,172.04,1.6664]
[1748137136127,13.41898984,172.13,172.05,53.57181043]
[1748137136420,13.41898984,172.13,172.07,18.79181043]
[1748137136622,13.41898984,172.14,172.07,18.79181043]
[1748137137522,161.7,172.2,172.08,257.28]
[1748137137696,13.41898984,172.14,172.08,257.28]
[1748137138021,13.41898984,172.14,172.08,40.26]
[1748137138224,13.41898984,172.11,172.04,1.6664]
[1748137138520,13.41898984,172.11,172.05,34.78]
[1748137138720,13.41898984,172.12,172.05,60.78]
[1748137139304,13.41898984,172.11,172.05,34.78]
[1748137139594,1.5896,172.13,172.05,34.78]
[1748137139798,13.41898984,172.12,172.05,34.78]
[1748137140215,13.41898984,172.11,172.06,34.78]
[1748137142201,13.41898984,172.09,172.03,26.0]
[1748137142403,13.41898984,172.09,172.04,34.78]
[1748137143623,7.8367,172.13,172.04,34.78]
[1748137143624,13.41898984,172.11,172.04,34.78]
[1748137143805,13.41898984,172.1,172.04,34.78]
[1748137144623,13.41898984,172.09,172.04,34.78]
[1748137144806,7.8367,172.13,172.04,34.78]
[1748137145122,13.41898984,172.09,172.04,34.78]
[1748137145341,13.41898984,172.07,172.04,34.78]
[1748137145806,13.41898984,172.08,172.04,34.78]
[1748137147509,13.41898984,172.09,172.05,257.32]
[1748137147821,13.41898984,172.09,172.05,40.26]
[1748137148727,13.41898984,172.09,172.01,44.64964886]
[1748137149048,13.41898984,172.09,172.06,34.78]
[1748137151625,13.41898984,172.08,172.06,34.78]
[1748137152224,13.41898984,172.07,172.0,26.0]
[1748137152534,135.7,172.12,172.01,34.78]
[1748137152535,13.41898984,172.06,172.01,34.78]
[1748137154610,13.41898984,172.07,172.01,34.78]
[1748137157336,135.7,172.12,172.01,34.78]
[1748137157632,13.41898984,172.08,172.02,257.24]
[1748137157834,13.41898984,172.08,172.02,40.16]
[1748137158212,13.41898984,172.07,172.02,40.16]
[1748137158412,13.41898984,172.07,172.01,34.78]
[1748137158624,13.41898984,172.08,172.01,34.78]
[1748137159443,13.41898984,172.07,172.01,34.78]
[1748137159666,135.7,172.12,172.01,34.78]
[1748137159839,13.41898984,172.08,172.01,34.78]
[1748137160738,13.41898984,172.09,172.01,34.78]
[1748137162417,135.7,172.12,172.02,18.64964886]
[1748137162938,13.41898984,172.11,172.02,20.28654886]
[1748137163152,135.7,172.12,172.05,26.0]
[1748137163336,13.41898984,172.14,172.06,34.8]
[1748137166040,26.0,172.12,172.06,34.8]
[1748137166337,13.41898984,172.1,172.06,34.8]
[1748137166563,13.41898984,172.12,172.06,34.8]
[1748137167333,13.41898984,172.11,172.06,34.8]
[1748137167539,26.0,172.09,172.07,217.06]
[1748137167844,26.0,172.05,171.98,7.7603]
[1748137168046,39.41898984,172.05,171.99,34.78]
[1748137168461,1.5577,172.09,171.99,34.78]
[1748137168462,13.41898984,172.04,171.99,34.78]
[1748137170039,13.41898984,172.05,171.99,34.78]
[1748137171851,26.0,172.08,171.99,34.78]
[1748137172051,39.41898984,172.08,171.99,34.78]
[1748137172252,13.41898984,172.07,171.99,34.78]
[1748137173968,13.41898984,172.06,171.99,34.78]
[1748137174773,6.5928,172.11,172.0,18.64964886]
[1748137175074,39.41898984,172.11,172.0,101.14964886]
[1748137176880,13.41898984,172.1,172.0,101.14964886]
[1748137177062,39.41898984,172.11,172.0,101.14964886]
[1748137177582,39.41898984,172.11,172.02,18.64964886]
[1748137178270,39.41898984,172.11,172.01,257.24]
[1748137178451,13.41898984,172.1,172.01,257.24]
[1748137180255,13.41898984,172.06,172.02,34.8]
[1748137180448,13.41898984,172.05,172.02,34.8]
[1748137180644,26.0,172.02,171.94,8.1812]
[1748137180872,13.41898984,171.99,171.95,34.8]
[1748137181092,13.41898984,172.0,171.95,34.8]
[1748137182777,13.41898984,172.01,171.95,34.8]
[1748137184129,26.0,172.03,171.95,34.8]
[1748137184391,26.0,172.03,171.96,18.79181043]
[1748137185494,1.5956,172.05,171.96,18.79181043]
[1748137187689,1.5956,172.05,171.98,18.79181043]
[1748137189975,1.5956,172.05,171.97,40.04]
[1748137193705,1.5956,172.05,171.96,18.64964886]
[1748137197483,6.1851,172.08,171.97,257.16]
[1748137197705,26.0,172.05,171.98,18.64964886]
[1748137199085,26.0,172.07,171.98,18.64964886]
[1748137200412,26.0,172.06,171.98,18.64964886]
[1748137201686,26.0,172.07,171.98,18.64964886]
[1748137201994,15.07808984,172.13,171.98,108.05453674]
[1748137202200,1.6591,172.13,172.0,18.64964886]
[1748137202400,1.6591,172.13,172.04,18.64964886]
[1748137202601,26.0,172.12,172.04,20.21584886]
[1748137203815,155.47398984,172.16,172.04,20.21584886]
[1748137204198,26.0,172.15,172.04,20.21584886]
[1748137205318,25.95676583,172.15,172.04,20.21584886]
[1748137206315,13.41898984,172.14,172.04,20.21584886]
[1748137206890,13.41898984,172.14,172.05,34.78]
[1748137207319,26.0,172.13,172.05,34.78]
[1748137207498,25.99999998,172.13,172.06,257.1]
[1748137207698,25.99999998,172.13,172.07,18.64964886]
[1748137207903,1.6591,172.17,172.07,18.64964886]
[1748137208118,1.6591,172.17,172.07,101.14964886]
[1748137209608,26.0,172.16,172.07,101.14964886]
[1748137210622,155.54518984,172.2,172.07,101.14964886]
[1748137211000,26.0,172.17,172.07,101.14964886]
[1748137211707,135.7,172.2,172.07,101.14964886]
[1748137211915,1.5079,172.21,172.09,18.64964886]
[1748137212107,26.0,172.2,172.11,18.64964886]